[Event "*** Titled Tuesday Blitz"]
[Site "Chess.com"]
[Date "2020.11.03"]
[Round "11"]
[White "Morshynska"]
[Black "dopolian"]
[Result "0-1"]
[WhiteElo "2249"]
[BlackElo "2360"]
[TimeControl "180+1"]
[EndTime "12:09:21 PST"]
[Termination "dopolian won by checkmate"]

1. Nf3 {[%clk 0:03:00.6]} 1... Nf6 {[%clk 0:02:56.1]} 2. g3 {[%clk 0:03:00.7]}
2... b6 {[%clk 0:02:52.6]} 3. Bg2 {[%clk 0:03:00.9]} 3... Bb7 {[%clk 0:02:53.5]}
4. O-O {[%clk 0:03:01]} 4... c5 {[%clk 0:02:53.5]} 5. c4 {[%clk 0:03:00.1]} 5...
g6 {[%clk 0:02:50.2]} 6. b3 {[%clk 0:02:57.7]} 6... Bg7 {[%clk 0:02:50.2]} 7.
Bb2 {[%clk 0:02:58.2]} 7... O-O {[%clk 0:02:50.8]} 8. Nc3 {[%clk 0:02:57.8]}
8... d6 {[%clk 0:02:48]} 9. e3 {[%clk 0:02:53.7]} 9... Nbd7 {[%clk 0:02:45.5]}
10. d4 {[%clk 0:02:53.1]} 10... cxd4 {[%clk 0:02:44.9]} 11. exd4 {[%clk
0:02:52.3]} 11... Ne4 {[%clk 0:02:42.1]} 12. Nxe4 {[%clk 0:02:47.1]} 12... Bxe4
{[%clk 0:02:43]} 13. Qe2 {[%clk 0:02:46.8]} 13... Nf6 {[%clk 0:02:39.5]} 14. d5
{[%clk 0:02:42]} 14... Bf5 {[%clk 0:02:35.4]} 15. Nd4 {[%clk 0:02:40.1]} 15...
Bd7 {[%clk 0:02:31.8]} 16. Rfe1 {[%clk 0:02:39.5]} 16... Re8 {[%clk 0:02:31.9]}
17. b4 {[%clk 0:02:30.8]} 17... Qc7 {[%clk 0:02:22.7]} 18. b5 {[%clk 0:02:18.5]}
18... a6 {[%clk 0:02:13.1]} 19. a4 {[%clk 0:02:17]} 19... axb5 {[%clk
0:01:44.3]} 20. axb5 {[%clk 0:02:17.9]} 20... Bg4 {[%clk 0:01:43]} 21. f3 {[%clk
0:02:06.4]} 21... Bd7 {[%clk 0:01:39.1]} 22. Nc6 {[%clk 0:02:01.5]} 22... e6
{[%clk 0:01:31.5]} 23. f4 {[%clk 0:01:35.7]} 23... Rxa1 {[%clk 0:01:22.9]} 24.
Rxa1 {[%clk 0:01:17.4]} 24... exd5 {[%clk 0:01:22.6]} 25. Qc2 {[%clk 0:01:02.8]}
25... Bxc6 {[%clk 0:01:18.7]} 26. cxd5 {[%clk 0:00:53.9]} 26... Qe7 {[%clk
0:00:32.1]} 27. bxc6 {[%clk 0:00:45.9]} 27... Ng4 {[%clk 0:00:28.4]} 28. Bxg7
{[%clk 0:00:41.8]} 28... Qe3+ {[%clk 0:00:28.3]} 29. Kf1 {[%clk 0:00:37.2]}
29... Nxh2# {[%clk 0:00:28.1]} 0-1

[Event "*** Titled Tuesday Blitz"]
[Site "Chess.com"]
[Date "2020.11.03"]
[Round "11"]
[White "WPWPWP-2015"]
[Black "TorFredrikKaasen"]
[Result "0-1"]
[WhiteElo "2529"]
[BlackElo "2730"]
[TimeControl "180+1"]
[EndTime "12:09:25 PST"]
[Termination "TorFredrikKaasen won on time"]

1. e4 {[%clk 0:02:56.8]} 1... c5 {[%clk 0:03:00]} 2. Nf3 {[%clk 0:02:55.7]} 2...
d6 {[%clk 0:03:00.5]} 3. Bb5+ {[%clk 0:02:54.8]} 3... Bd7 {[%clk 0:03:00.1]} 4.
a4 {[%clk 0:02:54.2]} 4... Nf6 {[%clk 0:02:58.6]} 5. Qe2 {[%clk 0:02:51.9]} 5...
Nc6 {[%clk 0:02:51.7]} 6. c3 {[%clk 0:02:50.9]} 6... a6 {[%clk 0:02:40.7]} 7.
Bc4 {[%clk 0:02:45.8]} 7... Bg4 {[%clk 0:02:34.8]} 8. d3 {[%clk 0:02:28.3]} 8...
e6 {[%clk 0:02:30.5]} 9. h3 {[%clk 0:02:25.3]} 9... Bxf3 {[%clk 0:02:27.4]} 10.
gxf3 {[%clk 0:02:25.2]} 10... g6 {[%clk 0:02:22.8]} 11. Bg5 {[%clk 0:02:13.3]}
11... h6 {[%clk 0:02:17.5]} 12. Be3 {[%clk 0:02:12.2]} 12... Be7 {[%clk
0:02:11.7]} 13. Nd2 {[%clk 0:02:11]} 13... d5 {[%clk 0:02:06.5]} 14. Ba2 {[%clk
0:02:09.1]} 14... d4 {[%clk 0:02:01.4]} 15. Bf4 {[%clk 0:02:07.6]} 15... Nh5
{[%clk 0:01:58.5]} 16. Bh2 {[%clk 0:02:04.3]} 16... Bg5 {[%clk 0:01:59]} 17. Nb3
{[%clk 0:01:49.5]} 17... dxc3 {[%clk 0:01:48.1]} 18. bxc3 {[%clk 0:01:47.9]}
18... O-O {[%clk 0:01:45.7]} 19. Rd1 {[%clk 0:01:07.5]} 19... Bf4 {[%clk
0:01:43]} 20. Bg1 {[%clk 0:01:03.5]} 20... Qf6 {[%clk 0:01:35.3]} 21. d4 {[%clk
0:00:59.8]} 21... cxd4 {[%clk 0:01:35.4]} 22. cxd4 {[%clk 0:00:59.6]} 22... Rfd8
{[%clk 0:01:28.6]} 23. e5 {[%clk 0:00:45.6]} 23... Qe7 {[%clk 0:01:24.3]} 24.
Kf1 {[%clk 0:00:39.8]} 24... Rac8 {[%clk 0:01:22.1]} 25. Bb1 {[%clk 0:00:16.5]}
25... Qb4 {[%clk 0:01:21.7]} 26. Qa2 {[%clk 0:00:03.6]} 26... Nxd4 {[%clk
0:01:18.5]} 27. Nxd4 {[%clk 0:00:03.4]} 27... Rxd4 {[%clk 0:01:19.4]} 28. Rxd4
{[%clk 0:00:03.4]} 28... Qxd4 {[%clk 0:01:19.5]} 29. Kg2 {[%clk 0:00:03.6]}
29... Bxe5 {[%clk 0:01:15.3]} 30. Bh2 {[%clk 0:00:03.5]} 30... Bxh2 {[%clk
0:01:11.7]} 31. Rxh2 {[%clk 0:00:02.8]} 31... Nf4+ {[%clk 0:01:10.5]} 32. Kg3
{[%clk 0:00:02.7]} 32... Rc1 {[%clk 0:01:10.4]} 0-1

[Event "*** Titled Tuesday Blitz"]
[Site "Chess.com"]
[Date "2020.11.03"]
[Round "11"]
[White "BanjoKazooieN64"]
[Black "Heineccius"]
[Result "1-0"]
[WhiteElo "2401"]
[BlackElo "2511"]
[TimeControl "180+1"]
[EndTime "12:09:25 PST"]
[Termination "BanjoKazooieN64 won by resignation"]

1. e4 {[%clk 0:03:00.9]} 1... c5 {[%clk 0:02:58.5]} 2. Nc3 {[%clk 0:03:00.7]}
2... e6 {[%clk 0:02:58.8]} 3. Nf3 {[%clk 0:03:00.6]} 3... Nc6 {[%clk 0:02:58.2]}
4. d4 {[%clk 0:03:00.5]} 4... cxd4 {[%clk 0:02:57.6]} 5. Nxd4 {[%clk 0:03:00.9]}
5... Qc7 {[%clk 0:02:58.1]} 6. f4 {[%clk 0:02:58.7]} 6... a6 {[%clk 0:02:55]} 7.
Nf3 {[%clk 0:02:56.7]} 7... Bc5 {[%clk 0:02:47.5]} 8. Bd3 {[%clk 0:02:55.8]}
8... b5 {[%clk 0:02:46.3]} 9. a3 {[%clk 0:02:55.6]} 9... Nge7 {[%clk 0:02:40.2]}
10. Qe2 {[%clk 0:02:55.7]} 10... Qa7 {[%clk 0:02:33.3]} 11. e5 {[%clk
0:02:51.3]} 11... Ng6 {[%clk 0:02:26.3]} 12. h4 {[%clk 0:02:39]} 12... d5 {[%clk
0:02:17.4]} 13. exd6 {[%clk 0:02:35.2]} 13... Bxd6 {[%clk 0:02:16.3]} 14. Ne4
{[%clk 0:02:28.3]} 14... Bxf4 {[%clk 0:02:08.8]} 15. h5 {[%clk 0:02:28.7]} 15...
Bxc1 {[%clk 0:01:58.7]} 16. hxg6 {[%clk 0:02:28.8]} 16... Bxb2 {[%clk
0:01:59.1]} 17. Rxh7 {[%clk 0:02:05.7]} 17... O-O {[%clk 0:01:58.4]} 18. gxf7+
{[%clk 0:01:20.5]} 18... Rxf7 {[%clk 0:01:59.3]} 19. Rb1 {[%clk 0:01:12.3]}
19... Rf8 {[%clk 0:02:00.2]} 20. Rxb2 {[%clk 0:01:07.5]} 20... Rf7 {[%clk
0:02:00.9]} 21. Neg5 {[%clk 0:01:01.5]} 21... Rf6 {[%clk 0:01:46.1]} 22. Qe4
{[%clk 0:00:57.4]} 22... Rf5 {[%clk 0:01:38.1]} 23. Qxc6 {[%clk 0:00:45.7]}
23... Bd7 {[%clk 0:01:38.4]} 24. Qe4 {[%clk 0:00:39.2]} 24... Raf8 {[%clk
0:01:38.9]} 25. Qh4 {[%clk 0:00:32.8]} 25... Qe3+ {[%clk 0:01:35.9]} 26. Kd1
{[%clk 0:00:33.1]} 26... Rxg5 {[%clk 0:01:32.5]} 27. Rh8+ {[%clk 0:00:31.6]}
27... Kf7 {[%clk 0:01:32.8]} 28. Nxg5+ {[%clk 0:00:30.1]} 28... Ke7 {[%clk
0:01:29.8]} 29. Ne4+ {[%clk 0:00:21.9]} 29... Rf6 {[%clk 0:01:27.5]} 30. Nxf6
{[%clk 0:00:19.4]} 30... Qg1+ {[%clk 0:01:27.1]} 31. Kd2 {[%clk 0:00:18.4]}
31... gxf6 {[%clk 0:01:27.3]} 32. Rh7+ {[%clk 0:00:17.4]} 32... Kd6 {[%clk
0:01:27.6]} 33. Qxf6 {[%clk 0:00:13.4]} 33... Qxg2+ {[%clk 0:01:24.8]} 34. Be2
{[%clk 0:00:13.5]} 34... Qg1 {[%clk 0:01:14.1]} 35. Rb3 {[%clk 0:00:12.8]} 35...
Kc5 {[%clk 0:01:10.6]} 36. Rxd7 {[%clk 0:00:11.7]} 1-0

[Event "*** Titled Tuesday Blitz"]
[Site "Chess.com"]
[Date "2020.11.03"]
[Round "11"]
[White "MaxLeto"]
[Black "Margarita2907"]
[Result "1-0"]
[WhiteElo "2354"]
[BlackElo "2231"]
[TimeControl "180+1"]
[EndTime "12:09:25 PST"]
[Termination "MaxLeto won by resignation"]

1. g4 {[%clk 0:02:55.3]} 1... d5 {[%clk 0:02:56.7]} 2. Bg2 {[%clk 0:02:55]} 2...
Bxg4 {[%clk 0:02:52.7]} 3. c4 {[%clk 0:02:54.6]} 3... Be6 {[%clk 0:02:47.5]} 4.
Qb3 {[%clk 0:02:53.1]} 4... Bc8 {[%clk 0:02:38.2]} 5. cxd5 {[%clk 0:02:42]} 5...
Nf6 {[%clk 0:02:30.4]} 6. Nc3 {[%clk 0:02:41.8]} 6... g6 {[%clk 0:02:28.9]} 7.
d4 {[%clk 0:02:31.8]} 7... Bg7 {[%clk 0:02:27]} 8. e4 {[%clk 0:02:29.4]} 8...
O-O {[%clk 0:02:23.1]} 9. e5 {[%clk 0:02:20.9]} 9... Ne8 {[%clk 0:02:21.1]} 10.
Be3 {[%clk 0:02:05.4]} 10... c6 {[%clk 0:02:17.8]} 11. O-O-O {[%clk 0:02:00.9]}
11... Nc7 {[%clk 0:02:14.3]} 12. Nge2 {[%clk 0:01:46.8]} 12... cxd5 {[%clk
0:02:11.4]} 13. Nxd5 {[%clk 0:01:47.7]} 13... Nxd5 {[%clk 0:02:09.8]} 14. Bxd5
{[%clk 0:01:48.6]} 14... Nc6 {[%clk 0:02:08.5]} 15. Nc3 {[%clk 0:01:39.5]} 15...
Bf5 {[%clk 0:01:56.1]} 16. Be4 {[%clk 0:01:33.1]} 16... Bxe4 {[%clk 0:01:54]}
17. Nxe4 {[%clk 0:01:34]} 17... Qc7 {[%clk 0:01:50]} 18. Kb1 {[%clk 0:01:32.5]}
18... Na5 {[%clk 0:01:41.5]} 19. Qa4 {[%clk 0:01:30.2]} 19... Rac8 {[%clk
0:01:29.4]} 20. Rc1 {[%clk 0:01:29.2]} 20... Qb6 {[%clk 0:01:27.1]} 21. d5
{[%clk 0:01:25.5]} 21... Qa6 {[%clk 0:01:23.2]} 22. Nc5 {[%clk 0:01:19.5]} 22...
Rxc5 {[%clk 0:01:14.4]} 23. Bxc5 {[%clk 0:00:57.4]} 23... Qd3+ {[%clk
0:01:11.2]} 24. Ka1 {[%clk 0:00:53.6]} 24... b6 {[%clk 0:00:52.2]} 25. Bxe7
{[%clk 0:00:53]} 25... Rb8 {[%clk 0:00:50.1]} 26. Rhd1 {[%clk 0:00:49.2]} 26...
Qe2 {[%clk 0:00:46]} 27. f4 {[%clk 0:00:45]} 27... Nb7 {[%clk 0:00:27.6]} 28.
Qxa7 {[%clk 0:00:43.7]} 1-0

[Event "*** Titled Tuesday Blitz"]
[Site "Chess.com"]
[Date "2020.11.03"]
[Round "11"]
[White "pfalcon1949"]
[Black "PlotnikovPavel"]
[Result "1-0"]
[WhiteElo "2013"]
[BlackElo "2399"]
[TimeControl "180+1"]
[EndTime "12:09:25 PST"]
[Termination "pfalcon1949 won by checkmate"]

1. c4 {[%clk 0:03:00.9]} 1... e5 {[%clk 0:02:59.3]} 2. Nc3 {[%clk 0:02:59.6]}
2... Nf6 {[%clk 0:02:58.1]} 3. g3 {[%clk 0:02:59.7]} 3... Bc5 {[%clk 0:02:56.9]}
4. Bg2 {[%clk 0:02:56.1]} 4... d6 {[%clk 0:02:57]} 5. Nf3 {[%clk 0:02:56.1]}
5... Nc6 {[%clk 0:02:56.3]} 6. O-O {[%clk 0:02:55.7]} 6... O-O {[%clk 0:02:55]}
7. e3 {[%clk 0:02:56.2]} 7... Bg4 {[%clk 0:02:52]} 8. d4 {[%clk 0:02:53.1]} 8...
exd4 {[%clk 0:02:50.1]} 9. exd4 {[%clk 0:02:44.8]} 9... Nxd4 {[%clk 0:02:49.5]}
10. Be3 {[%clk 0:02:37.6]} 10... Nxf3+ {[%clk 0:02:43]} 11. Bxf3 {[%clk
0:02:37.7]} 11... Bxe3 {[%clk 0:02:35.8]} 12. fxe3 {[%clk 0:02:28.3]} 12... Qd7
{[%clk 0:02:33.1]} 13. Nd5 {[%clk 0:02:20.2]} 13... Be6 {[%clk 0:01:33.6]} 14.
Nxf6+ {[%clk 0:02:15.6]} 14... gxf6 {[%clk 0:01:33.4]} 15. b3 {[%clk 0:01:59.3]}
15... Qe7 {[%clk 0:01:23.9]} 16. Bxb7 {[%clk 0:01:54.7]} 16... Rab8 {[%clk
0:01:19.2]} 17. Bg2 {[%clk 0:01:52.2]} 17... Kh8 {[%clk 0:01:15.1]} 18. Qf3
{[%clk 0:01:51.1]} 18... Kg7 {[%clk 0:01:02]} 19. Qf4 {[%clk 0:01:45.9]} 19...
Rb4 {[%clk 0:00:45]} 20. Rad1 {[%clk 0:01:37.8]} 20... a5 {[%clk 0:00:40.8]} 21.
Bd5 {[%clk 0:01:37.6]} 21... a4 {[%clk 0:00:35.9]} 22. Be4 {[%clk 0:01:09.8]}
22... axb3 {[%clk 0:00:33.7]} 23. Qh4 {[%clk 0:01:04.1]} 23... h6 {[%clk
0:00:31.7]} 24. axb3 {[%clk 0:01:00.4]} 24... Rxb3 {[%clk 0:00:28.8]} 25. Rf3
{[%clk 0:00:56.6]} 25... Rc3 {[%clk 0:00:20.5]} 26. Rdf1 {[%clk 0:00:55.8]}
26... Re8 {[%clk 0:00:13.8]} 27. Rxf6 {[%clk 0:00:54.4]} 27... Rxc4 {[%clk
0:00:09.8]} 28. Qxh6+ {[%clk 0:00:51.8]} 28... Kg8 {[%clk 0:00:08.4]} 29. Qh7+
{[%clk 0:00:51.6]} 29... Kf8 {[%clk 0:00:08.6]} 30. Qh8# {[%clk 0:00:52.2]} 1-0

[Event "*** Titled Tuesday Blitz"]
[Site "Chess.com"]
[Date "2020.11.03"]
[Round "11"]
[White "Jenia84"]
[Black "jonaszmb"]
[Result "0-1"]
[WhiteElo "2330"]
[BlackElo "2427"]
[TimeControl "180+1"]
[EndTime "12:09:27 PST"]
[Termination "jonaszmb won by resignation"]

1. Nf3 {[%clk 0:03:00.3]} 1... g6 {[%clk 0:02:57.8]} 2. b3 {[%clk 0:02:59.7]}
2... Bg7 {[%clk 0:02:58]} 3. Nc3 {[%clk 0:02:59.6]} 3... d5 {[%clk 0:02:58.2]}
4. Bb2 {[%clk 0:02:59.8]} 4... d4 {[%clk 0:02:58.5]} 5. Nb1 {[%clk 0:02:56.2]}
5... e5 {[%clk 0:02:58.1]} 6. c3 {[%clk 0:02:55.6]} 6... c5 {[%clk 0:02:57.1]}
7. cxd4 {[%clk 0:02:55]} 7... e4 {[%clk 0:02:51.8]} 8. Ng1 {[%clk 0:02:42.6]}
8... cxd4 {[%clk 0:02:46.1]} 9. d3 {[%clk 0:02:39.8]} 9... Nf6 {[%clk
0:02:14.9]} 10. g3 {[%clk 0:02:26.3]} 10... e3 {[%clk 0:02:12.5]} 11. fxe3
{[%clk 0:02:18]} 11... Ng4 {[%clk 0:01:52.7]} 12. exd4 {[%clk 0:02:05.4]} 12...
Bxd4 {[%clk 0:01:50.1]} 13. Bxd4 {[%clk 0:01:12.6]} 13... Qxd4 {[%clk 0:01:51]}
14. Qc1 {[%clk 0:01:12.3]} 14... O-O {[%clk 0:01:34.4]} 15. Nc3 {[%clk
0:01:04.7]} 15... Qf2+ {[%clk 0:01:20.7]} 16. Kd2 {[%clk 0:01:01.3]} 16... Rd8
{[%clk 0:01:08.4]} 17. Nd5 {[%clk 0:00:34.9]} 17... Nc6 {[%clk 0:01:00.9]} 18.
Nh3 {[%clk 0:00:30.8]} 18... Qd4 {[%clk 0:00:54.2]} 19. Ndf4 {[%clk 0:00:19.8]}
19... Bf5 {[%clk 0:00:41.2]} 20. Bg2 {[%clk 0:00:18.9]} 20... Rac8 {[%clk
0:00:39.4]} 21. Qc4 {[%clk 0:00:18.2]} 21... Qe3+ {[%clk 0:00:36.5]} 22. Ke1
{[%clk 0:00:17.1]} 22... Nd4 {[%clk 0:00:35.4]} 23. Qb4 {[%clk 0:00:10.9]} 23...
Nc2+ {[%clk 0:00:35.1]} 0-1

[Event "*** Titled Tuesday Blitz"]
[Site "Chess.com"]
[Date "2020.11.03"]
[Round "11"]
[White "giantslayer83"]
[Black "Nikolaj_6"]
[Result "0-1"]
[WhiteElo "2700"]
[BlackElo "2574"]
[TimeControl "180+1"]
[EndTime "12:09:33 PST"]
[Termination "Nikolaj_6 won on time"]

1. d4 {[%clk 0:03:00.9]} 1... Nf6 {[%clk 0:02:59.8]} 2. c4 {[%clk 0:03:01.3]}
2... c5 {[%clk 0:03:00]} 3. Nf3 {[%clk 0:03:00]} 3... cxd4 {[%clk 0:02:59.5]} 4.
Nxd4 {[%clk 0:03:00.9]} 4... e5 {[%clk 0:02:58.6]} 5. Nb5 {[%clk 0:03:00.7]}
5... d5 {[%clk 0:02:58.8]} 6. cxd5 {[%clk 0:03:00.6]} 6... Bc5 {[%clk
0:02:58.9]} 7. e3 {[%clk 0:02:39.8]} 7... O-O {[%clk 0:02:58.1]} 8. N5c3 {[%clk
0:02:26.9]} 8... Qe7 {[%clk 0:02:53.8]} 9. Be2 {[%clk 0:02:25.8]} 9... e4 {[%clk
0:02:44.6]} 10. Nd2 {[%clk 0:02:23.2]} 10... Rd8 {[%clk 0:02:41.6]} 11. Qc2
{[%clk 0:02:23.4]} 11... Bf5 {[%clk 0:02:23.6]} 12. g4 {[%clk 0:02:21.9]} 12...
Nxg4 {[%clk 0:02:20.2]} 13. Ndxe4 {[%clk 0:02:15.9]} 13... Bb4 {[%clk
0:02:11.1]} 14. Bd3 {[%clk 0:01:54.8]} 14... Rxd5 {[%clk 0:02:00.1]} 15. Bd2
{[%clk 0:01:37.2]} 15... Rxd3 {[%clk 0:01:57.5]} 16. Qxd3 {[%clk 0:01:38.1]}
16... Bxc3 {[%clk 0:01:57.5]} 17. Qxc3 {[%clk 0:01:27.1]} 17... Qxe4 {[%clk
0:01:46.1]} 18. f3 {[%clk 0:01:23.6]} 18... Qxf3 {[%clk 0:01:41.7]} 19. Rf1
{[%clk 0:01:24.2]} 19... Qd5 {[%clk 0:01:32]} 20. O-O-O {[%clk 0:01:05.5]} 20...
Qe4 {[%clk 0:01:18.8]} 21. Rxf5 {[%clk 0:00:27.4]} 21... Qxf5 {[%clk 0:01:18.2]}
22. e4 {[%clk 0:00:28.3]} 22... Qe6 {[%clk 0:01:16.1]} 23. h3 {[%clk 0:00:20]}
23... Na6 {[%clk 0:01:14.8]} 24. Kb1 {[%clk 0:00:07.1]} 24... Qxe4+ {[%clk
0:01:10.6]} 25. Ka1 {[%clk 0:00:07.1]} 25... Nf6 {[%clk 0:01:08.9]} 26. Rg1
{[%clk 0:00:06]} 26... Qc6 {[%clk 0:01:04.2]} 27. Qg3 {[%clk 0:00:04.5]} 27...
g6 {[%clk 0:01:03.4]} 28. Qh4 {[%clk 0:00:02.2]} 28... Ne4 {[%clk 0:01:00.2]}
29. Be3 {[%clk 0:00:01.8]} 29... Nb4 {[%clk 0:00:57.3]} 0-1

[Event "*** Titled Tuesday Blitz"]
[Site "Chess.com"]
[Date "2020.11.03"]
[Round "11"]
[White "ciucas1892"]
[Black "lacafi"]
[Result "1-0"]
[WhiteElo "2249"]
[BlackElo "2085"]
[TimeControl "180+1"]
[EndTime "12:09:37 PST"]
[Termination "ciucas1892 won by resignation"]

1. e4 {[%clk 0:03:00.9]} 1... c6 {[%clk 0:02:57.2]} 2. d4 {[%clk 0:02:58.2]}
2... d5 {[%clk 0:02:57.5]} 3. exd5 {[%clk 0:02:56.2]} 3... cxd5 {[%clk
0:02:57.7]} 4. c4 {[%clk 0:02:57.1]} 4... Nf6 {[%clk 0:02:56.5]} 5. Nc3 {[%clk
0:02:51.4]} 5... Nc6 {[%clk 0:02:54.3]} 6. Nf3 {[%clk 0:02:49.8]} 6... Bg4
{[%clk 0:02:48.7]} 7. cxd5 {[%clk 0:02:20.5]} 7... Nxd5 {[%clk 0:02:48]} 8. Be2
{[%clk 0:02:20.8]} 8... e6 {[%clk 0:02:41.7]} 9. O-O {[%clk 0:02:19.9]} 9... Be7
{[%clk 0:02:40]} 10. h3 {[%clk 0:02:00.7]} 10... Bh5 {[%clk 0:02:39.2]} 11. Qb3
{[%clk 0:01:51.9]} 11... Bxf3 {[%clk 0:02:05.6]} 12. Bxf3 {[%clk 0:01:51.1]}
12... Nxd4 {[%clk 0:02:05.5]} 13. Qa4+ {[%clk 0:01:50.6]} 13... Nc6 {[%clk
0:02:00.3]} 14. Nxd5 {[%clk 0:01:49]} 14... exd5 {[%clk 0:01:59.9]} 15. Rd1
{[%clk 0:01:46]} 15... O-O {[%clk 0:01:47]} 16. Bxd5 {[%clk 0:01:44]} 16... Qb6
{[%clk 0:01:40.7]} 17. Be3 {[%clk 0:01:40.4]} 17... Qxb2 {[%clk 0:01:40.3]} 18.
Rab1 {[%clk 0:01:35.3]} 18... Qa3 {[%clk 0:01:24.5]} 19. Qxa3 {[%clk 0:01:23.8]}
19... Bxa3 {[%clk 0:01:25.4]} 20. Rxb7 {[%clk 0:01:24.2]} 20... Ne5 {[%clk
0:00:41]} 21. Rb3 {[%clk 0:01:21.7]} 21... Be7 {[%clk 0:00:36.7]} 22. Bxa8
{[%clk 0:01:14]} 22... Rxa8 {[%clk 0:00:34.7]} 23. Bf4 {[%clk 0:01:09]} 23...
Bf6 {[%clk 0:00:33.4]} 24. Bxe5 {[%clk 0:01:08.7]} 24... Bxe5 {[%clk 0:00:33.6]}
25. g3 {[%clk 0:01:08.5]} 25... g6 {[%clk 0:00:31.4]} 26. f4 {[%clk 0:01:08.7]}
26... Bg7 {[%clk 0:00:29.5]} 27. Kf2 {[%clk 0:01:09]} 27... Rc8 {[%clk
0:00:28.3]} 28. Rd2 {[%clk 0:01:07.9]} 28... h5 {[%clk 0:00:26.1]} 29. a4 {[%clk
0:01:07.4]} 29... Rc1 {[%clk 0:00:24.6]} 30. Rb8+ {[%clk 0:01:07]} 30... Kh7
{[%clk 0:00:23.3]} 31. Rb7 {[%clk 0:01:07.3]} 31... Rc4 {[%clk 0:00:21.4]} 32.
Rxf7 {[%clk 0:01:04.7]} 32... Kg8 {[%clk 0:00:14.7]} 33. Rdd7 {[%clk 0:01:01.4]}
33... Bd4+ {[%clk 0:00:11.4]} 34. Kf3 {[%clk 0:00:58.8]} 34... Rxa4 {[%clk
0:00:12.3]} 35. g4 {[%clk 0:00:57.2]} 35... hxg4+ {[%clk 0:00:11.4]} 36. hxg4
{[%clk 0:00:58.1]} 36... Ra3+ {[%clk 0:00:10.7]} 37. Ke4 {[%clk 0:00:58.4]}
37... Bb2 {[%clk 0:00:10.2]} 38. f5 {[%clk 0:00:56.1]} 1-0

[Event "*** Titled Tuesday Blitz"]
[Site "Chess.com"]
[Date "2020.11.03"]
[Round "11"]
[White "ARTHURMOTIVATOR"]
[Black "Klavdia_Nik"]
[Result "1-0"]
[WhiteElo "2356"]
[BlackElo "2103"]
[TimeControl "180+1"]
[EndTime "12:09:45 PST"]
[Termination "ARTHURMOTIVATOR won on time"]

1. e4 {[%clk 0:03:00.9]} 1... e6 {[%clk 0:02:55.3]} 2. b3 {[%clk 0:02:59.5]}
2... d5 {[%clk 0:02:50.7]} 3. Bb2 {[%clk 0:02:52.2]} 3... dxe4 {[%clk 0:02:47]}
4. Nc3 {[%clk 0:02:48.7]} 4... Nf6 {[%clk 0:02:45.8]} 5. Qe2 {[%clk 0:02:43.3]}
5... Qd4 {[%clk 0:02:20.5]} 6. O-O-O {[%clk 0:02:37.1]} 6... Qb6 {[%clk
0:01:48.9]} 7. g4 {[%clk 0:02:31.5]} 7... Qa5 {[%clk 0:01:37]} 8. Kb1 {[%clk
0:02:24.2]} 8... Ba3 {[%clk 0:01:30.5]} 9. Qb5+ {[%clk 0:02:13.4]} 9... Qxb5
{[%clk 0:01:19.1]} 10. Bxb5+ {[%clk 0:02:12.3]} 10... c6 {[%clk 0:01:19]} 11.
Bxa3 {[%clk 0:02:11.9]} 11... cxb5 {[%clk 0:01:19.1]} 12. Nxb5 {[%clk
0:02:12.5]} 12... Na6 {[%clk 0:01:18.8]} 13. d3 {[%clk 0:01:44.3]} 13... Nxg4
{[%clk 0:00:45.8]} 14. Nd6+ {[%clk 0:01:35.1]} 14... Kd7 {[%clk 0:00:36.2]} 15.
Nh3 {[%clk 0:01:17.5]} 15... exd3 {[%clk 0:00:10.9]} 16. Nxf7 {[%clk 0:01:02]}
16... Kc6 {[%clk 0:00:09.7]} 17. Rxd3 {[%clk 0:00:57.3]} 17... Re8 {[%clk
0:00:07.7]} 18. f3 {[%clk 0:00:48.8]} 18... Nf6 {[%clk 0:00:06.6]} 19. Ne5+
{[%clk 0:00:47.3]} 19... Kc7 {[%clk 0:00:06.7]} 20. Rg1 {[%clk 0:00:40.8]} 20...
g6 {[%clk 0:00:05.7]} 21. Nc4 {[%clk 0:00:29.8]} 21... b6 {[%clk 0:00:02.6]} 22.
Ng5 {[%clk 0:00:26.6]} 1-0